lending/lending_fUSD_20260312
["ID","MTS","AMOUNT","RATE_DAILY","PERIOD"]
[408251931,1773316243952,-2000.0,0.00021416,2]
[408251932,1773316243962,-1343.0,0.00021916,2]
[408251933,1773316243971,-1043.0,0.00021916,2]
[408251934,1773316243980,-620.0,0.00021916,2]
[408251935,1773316243989,-3507.0,0.00021916,2]
[408251936,1773316243998,-1280.0,0.00021916,2]
[408251937,1773316244007,-216.0,0.00021916,2]
[408251938,1773316244017,-535.514,0.00021916,2]
[408251939,1773316244026,-150.0,0.00021916,2]
[408251940,1773316244248,-3751.0,0.00021916,2]
[408251941,1773316244259,-150.0,0.00021916,2]
[408251942,1773316244268,-387.717,0.00021916,2]
[408251943,1773316244278,-211.07,0.00021918,2]
[408251944,1773316244289,-162.27323831,0.00021918,2]
[408251945,1773316244298,-4609.0,0.00021952,2]
[408251946,1773316244307,-9751.55221981,0.00021979,2]
[408251947,1773316244316,-9840.43834717,0.00022243,2]
[408251948,1773316244326,-472.77,0.00022523,2]
[408251949,1773316244335,-10178.4,0.00022558,2]
[408251950,1773316244344,-9751.55221981,0.00022688,2]
[408251951,1773316244353,-11844.659938,0.0002272,30]
[408251952,1773316244362,-1598.378409,0.00022737,30]
[408251953,1773316244371,-500.0,0.0002276,2]
[408251954,1773316244380,-150.0,0.0002276,2]
[408251955,1773316244389,-175.79642435,0.0002276,2]
[408251956,1773316244398,-153.55745013,0.00022791,2]
[408251957,1773316244408,-950.26,0.000229,2]
[408251958,1773316244417,-174.41796854,0.00022917,2]
[408251959,1773316244426,-2000.0,0.00023,2]
[408251960,1773316244435,-450.0,0.00023,2]
[408251961,1773316244444,-1414.726692,0.00023175,30]
[408251962,1773316244454,-251.52,0.00023184,2]
[408251963,1773316244463,-25913.2446424,0.00023195,2]
[408251964,1773316244472,-211.07,0.0002336,2]
[408251965,1773316244480,-9751.55221981,0.00023398,2]
[408251966,1773316244489,-700.0,0.0002367,2]
[408251967,1773316244499,-541.32,0.0002369,2]
[408251968,1773316244509,-339.58477835,0.0002386,2]
[408251969,1773316244519,-420.55700199,0.00023887,2]
[408251970,1773316244528,-445.78,0.00023887,2]
[408251971,1773316244537,-9751.55221981,0.00024107,2]
[408251972,1773316244547,-445.78,0.00024126,2]
[408251973,1773316244556,-6453.0,0.00024147,2]
[408251974,1773316244565,-153.55745013,0.00024216,2]
[408251975,1773316244574,-150.0,0.00024232,7]
[408251976,1773316244583,-249.192552,0.00024234,7]
[408251977,1773316244592,-775.0418686,0.00024334,2]
[408251978,1773316244601,-445.78,0.00024365,2]
[408251979,1773316244610,-445.78,0.00024604,2]
[408251980,1773316244619,-2011.12773399,0.00024657,2]
[408251981,1773316244628,-211.07,0.00024802,2]
[408251982,1773316244638,-9751.55221981,0.00024816,2]
[408251983,1773316244648,-445.78,0.00024843,2]
[408251984,1773316244657,-491.61562808,0.00024873,2]
[408251985,1773316244666,-607074.705733,0.000249,3]
[408251986,1773316244676,-1343.0,0.00024916,2]
[408251987,1773316244685,-620.0,0.00024916,2]
[408251988,1773316244695,-1280.0,0.00024916,2]
[408251989,1773316244704,-3751.0,0.00024916,2]
[408251990,1773316244713,-150.0,0.00024916,2]
[408251991,1773316244722,-500.0,0.00025,2]
[408251992,1773316244732,-445.79275802,0.00025082,2]
[408251993,1773316244741,-472.77,0.00025347,2]
[408251994,1773316244750,-522.0,0.000254,9]
[408251995,1773316244759,-1560.41,0.00025479,30]
[408251996,1773316244768,-5000.0,0.00025538,2]
[408251997,1773316244778,-25913.2446424,0.00025576,2]
[408251998,1773316244787,-151.0,0.00025576,2]
[408251999,1773316244796,-151.0,0.00025576,2]
[408252000,1773316244805,-153.55745013,0.0002564,2]
[408252001,1773316244814,-9840.43834717,0.00026054,2]
[408252002,1773316244824,-1146.27561855,0.00026091,2]
[408252003,1773316244834,-211.07,0.00026244,2]
[408252004,1773316244843,-150.0,0.00026258,7]
[408252005,1773316244853,-150.0,0.00026258,7]
[408252006,1773316244862,-150.0,0.00026258,7]
[408252007,1773316244872,-243.0,0.00026258,7]
[408252008,1773316244882,-2299.0,0.00026374,2]
[408252009,1773316244891,-3197.0,0.00026374,2]
[408252010,1773316244902,-1788.0,0.00026544,2]
[408252011,1773316244911,-9035.0,0.00026562,2]
[408252012,1773316244921,-1270.87055855,0.00026575,2]
[408252013,1773316244931,-251.52,0.00026578,2]
[408252014,1773316244941,-2000.0,0.000267,2]
[408252015,1773316244950,-153.55745013,0.00027065,2]
[408252016,1773316244960,-150.0,0.00027123,14]
[408252017,1773316244969,-150.0,0.00027123,14]
[408252018,1773316244979,-150.0,0.00027123,14]
[408252019,1773316244988,-150.0,0.00027123,14]
[408252020,1773316244998,-247.0,0.00027123,14]
[408252021,1773316245007,-150.0,0.00027369,2]
[408252022,1773316245017,-300.0,0.00027397,2]
[408252023,1773316245026,-4745.32,0.00027397,10]
[408252024,1773316245035,-8284.34,0.00027397,10]
[408252025,1773316245044,-644.18354652,0.0002765,2]
[408252026,1773316245054,-150.0,0.00027676,7]
[408252027,1773316245063,-150.0,0.00027676,7]
[408252028,1773316245072,-150.0,0.00027676,7]
[408252029,1773316245081,-243.0,0.00027676,7]
[408252030,1773316245091,-211.07,0.00027686,2]
[408252031,1773316245100,-1110.0,0.000277,5]
[408252032,1773316245110,-541.32,0.0002781,60]
[408252033,1773316245118,-150.0,0.00027882,2]
[408252034,1773316245127,-150.0,0.00027882,2]
[408252035,1773316245136,-150.0,0.00027882,2]
[408252036,1773316245146,-150.0,0.00027882,2]
[408252037,1773316245155,-229.0,0.00027882,2]
[408252038,1773316245164,-798.628,0.00027916,2]
[408252039,1773316245173,-620.0,0.00027916,2]
[408252040,1773316245182,-1280.0,0.00027916,2]
[408252041,1773316245191,-383.12,0.00027916,2]
[408252042,1773316245200,-151.0,0.00027956,7]
[408252043,1773316245214,-151.0,0.00027956,7]
[408252044,1773316245223,-151.0,0.00027956,7]
[408252045,1773316245232,-176.155437,0.00027956,7]
[408252046,1773316245241,-151.0,0.00027956,7]
[408252047,1773316245251,-25913.2446424,0.00027957,2]
[408252048,1773316245260,-339.58477835,0.0002802,2]
[408252049,1773316245270,-848.0,0.0002817,3]
[408252050,1773316245280,-2133.284,0.00028321,19]
[408252051,1773316245291,-175.47598024,0.00028321,19]
[408252052,1773316245302,-250.0,0.00028359,11]
[408252053,1773316245311,-1000.0,0.00028482,2]
[408252054,1773316245320,-153.55745013,0.00028489,2]
[408252055,1773316245329,-225.6553686,0.00028558,2]
[408252056,1773316245338,-210.12,0.00028606,2]
[408252057,1773316245347,-1728.28767134,0.00028642,2]
[408252058,1773316245356,-150.0,0.00028715,7]
[408252059,1773316245366,-150.0,0.00028715,7]
[408252060,1773316245375,-150.0,0.00028715,7]
[408252061,1773316245384,-150.0,0.00028715,7]
[408252062,1773316245393,-229.0,0.00028715,7]
[408252063,1773316245402,-296.0,0.00028715,7]
[408252064,1773316245411,-775.0418686,0.00028969,2]
[408252065,1773316245422,-151.0,0.00029005,7]
[408252066,1773316245431,-150.0,0.00029007,14]
[408252067,1773316245440,-150.0,0.00029007,14]
[408252068,1773316245451,-267.0,0.00029007,14]
[408252069,1773316245462,-150.0,0.00029007,14]
[408252070,1773316245471,-150.0,0.00029007,14]
[408252071,1773316245480,-150.0,0.00029007,14]
[408252072,1773316245491,-229.0,0.00029007,14]
[408252073,1773316245500,-242.0,0.00029007,14]
[408252074,1773316245510,-210.12,0.00029042,2]
[408252075,1773316245519,-211.07,0.00029128,2]
[408252076,1773316245530,-3446.0,0.00029218,2]
[408252077,1773316245540,-274.05,0.000293,14]
[408252078,1773316245549,-619.57451793,0.00029375,2]
[408252079,1773316245559,-290.0,0.00029386,2]
[408252080,1773316245568,-210.12,0.00029478,2]
[408252081,1773316245578,-150.0,0.0002959,2]
[408252082,1773316245587,-150.0,0.0002959,2]
[408252083,1773316245597,-150.0,0.0002959,2]
[408252084,1773316245606,-212.0,0.0002959,2]
[408252085,1773316245617,-522.0,0.000296,13]
[408252086,1773316245628,-150.0,0.00029683,2]
[408252087,1773316245638,-150.0,0.00029683,120]
[408252088,1773316245650,-299.0,0.00029723,10]
[408252089,1773316245660,-633.50649384,0.0002977,2]
[408252090,1773316245671,-500.0,0.00029808,2]
[408252091,1773316245681,-9840.43834717,0.00029864,2]
[408252092,1773316245690,-153.55745014,0.00029914,2]
[408252093,1773316245701,-253.480155,0.00029969,7]
[408252094,1773316245711,-253.480155,0.00029969,7]
[408252095,1773316245720,-253.480155,0.00029969,7]
[408252096,1773316245729,-253.480155,0.00029969,7]
[408252097,1773316245740,-151.0,0.00029969,7]
[408252098,1773316245752,-304.0,0.0003,2]
[408252099,1773316245763,-995.0,0.0003,2]
[408252100,1773316245774,-311.0,0.0003,2]
[408252101,1773316245784,-203.0,0.0003,2]
[408252102,1773316245793,-500.0,0.00030274,2]
[408252103,1773316245803,-18425.02657,0.00030294,30]
[408252104,1773316245812,-5327.928032,0.00030316,30]
[408252105,1773316245821,-25913.2446424,0.00030337,2]
[408252106,1773316245831,-1442.0,0.000304,2]
[408252107,1773316245840,-211.07,0.0003057,2]
[408252108,1773316245850,-167.68,0.00030879,2]
[408252109,1773316245859,-3301.028948,0.000309,30]
[408252110,1773316245868,-225.032,0.00030916,2]
[408252111,1773316245877,-1280.0,0.00030916,2]
[408252112,1773316245887,-3196.0,0.000314,5]
[408252113,1773316245897,-151.0,0.0003147,7]
[408252114,1773316245906,-151.0,0.0003147,7]
[408252115,1773316245916,-151.0,0.0003147,7]
[408252116,1773316245926,-167.68,0.00031787,2]
[408252117,1773316245935,-211.07,0.00032012,2]
[408252118,1773316245945,-339.58477835,0.0003218,2]
[408252119,1773316245954,-167.68,0.00032695,2]
[408252120,1773316245964,-25913.2446424,0.00032718,2]
[408252121,1773316245973,-164.63,0.000328,7]
[408252122,1773316245982,-198.54,0.000329,30]
[408252123,1773316245991,-7021.5,0.000329,7]
[408252124,1773316246001,-4840.82,0.000329,2]
[408252125,1773316246010,-12983.2,0.000329,30]
[408252126,1773316246020,-93615.67,0.000329,14]
[408252127,1773316246030,-5000.0,0.0003325,2]
[408252128,1773316246039,-5000.0,0.0003325,2]
[408252129,1773316246049,-152.0,0.00033272,3]
[408252130,1773316246059,-211.07,0.00033454,30]
[408252131,1773316246070,-6347.0,0.00033549,2]
[408252133,1773316246079,-775.0418686,0.00033603,2]
[408252135,1773316246089,-652.60501915,0.00033621,2]
[408252137,1773316246099,-11427.58865983,0.00033621,2]
[408252139,1773316246108,-1098.69077067,0.00033621,2]
[408252140,1773316246117,-9840.43834717,0.00033674,2]
[408252141,1773316246128,-522.0,0.000338,17]
[408252142,1773316246137,-250.0,0.00033827,32]
[408252143,1773316246147,-1280.0,0.00033916,2]
[408252144,1773316246156,-526.181758,0.00034069,120]
[408252145,1773316246166,-1442.21109921,0.000341,2]
[408252146,1773316246176,-2600.24095294,0.00034316,120]
[408252147,1773316246186,-157.0,0.00034316,120]
[408252148,1773316246196,-1580.0,0.00034316,120]
[408252149,1773316246205,-1500.0,0.00034795,2]
[408252150,1773316246219,-211.07,0.00034896,30]
[408252151,1773316246229,-25913.2446424,0.00035099,2]
[408252152,1773316246238,-7021.5,0.000352,7]
[408252153,1773316246248,-4840.82,0.000352,2]
[408252154,1773316246259,-12983.2,0.000352,30]
[408252155,1773316246268,-93615.67,0.000356,14]
[408252156,1773316246278,-822.80631993,0.00035616,120]
[408252157,1773316246289,-500.0,0.00035616,7]
[408252158,1773316246300,-169.54594841,0.00035616,7]
[408252159,1773316246309,-500.0,0.00035616,7]
[408252160,1773316246319,-500.0,0.00035616,7]
[408252161,1773316246328,-500.0,0.00035616,7]
[408252162,1773316246338,-500.0,0.00035616,7]
[408252163,1773316246347,-500.0,0.00035616,7]
[408252164,1773316246357,-184.774242,0.00035616,7]
[408252165,1773316246367,-321.27036826,0.00036,48]
[408252166,1773316246376,-167.85332882,0.00036286,49]
[408252167,1773316246388,-211.07,0.00036338,30]
[408252168,1773316246398,-339.58477835,0.0003634,2]
[408252169,1773316246407,-2975.4377,0.00036352,2]
[408252170,1773316246417,-1270.87055855,0.00036452,2]
[408252171,1773316246427,-152.0,0.00036457,4]
[408252172,1773316246436,-200.0,0.00036569,5]
[408252173,1773316246446,-1277.849,0.00036916,2]
[408252174,1773316246456,-541.32,0.0003708,90]
[408252175,1773316246464,-170.93300294,0.000372,120]
[408252176,1773316246473,-250.0,0.00037358,44]
[408252177,1773316246483,-25913.2446424,0.0003748,2]
[408252178,1773316246492,-9840.43834717,0.00037484,2]
[408252179,1773316246501,-211.07,0.0003778,30]
[408252180,1773316246511,-522.0,0.00038,21]
[408252181,1773316246520,-293.90071374,0.000381,33]
[408252182,1773316246530,-7021.5,0.000382,7]
[408252183,1773316246539,-4840.82,0.000382,2]
[408252184,1773316246549,-12983.2,0.000382,30]
[408252185,1773316246558,-775.0418686,0.00038237,2]
[408252186,1773316246567,-557.92306114,0.00038251,57]
[408252187,1773316246577,-585.91012951,0.0003829,2]
[408252188,1773316246586,-93615.67,0.000383,14]
[408252189,1773316246596,-151.674459,0.000383,7]
[408252190,1773316246605,-151.674459,0.000383,7]
[408252191,1773316246615,-151.674459,0.000383,7]
[408252192,1773316246624,-151.674459,0.000383,7]
[408252193,1773316246634,-2517.437115,0.000383,7]
[408252194,1773316246644,-2517.437115,0.000383,7]
[408252195,1773316246654,-2517.437115,0.000383,7]
[408252196,1773316246665,-2517.437115,0.000383,7]
[408252197,1773316246681,-151.0,0.000383,7]
[408252198,1773316246691,-151.0,0.000383,7]
[408252199,1773316246700,-857.87990483,0.00038329,120]
[408252200,1773316246711,-439.93099581,0.00038356,120]
[408252202,1773316246720,-151.0,0.00038414,120]
[408252204,1773316246739,-151.0,0.00038414,120]
[408252205,1773316246750,-151.0,0.00038414,120]
[408252206,1773316246760,-265.244161,0.00038414,28]
[408252208,1773316246771,-265.244161,0.00038414,28]
[408252209,1773316246781,-265.244161,0.00038414,28]
[408252210,1773316246792,-265.244161,0.00038414,28]
[408252211,1773316246805,-193.594593,0.00038414,120]
[408252212,1773316246816,-151.0,0.0003883,14]
[408252213,1773316246826,-1000.0,0.00038833,2]
[408252214,1773316246836,-32942.6924,0.00038833,2]
[408252215,1773316246846,-197.3401442,0.0003898,60]
[408252216,1773316246856,-500.0,0.00039178,2]
[408252217,1773316246865,-211.07,0.00039221,30]
[408252218,1773316246875,-500.0,0.00039356,14]
[408252219,1773316246885,-500.0,0.00039356,14]
[408252220,1773316246894,-500.0,0.00039356,14]
[408252221,1773316246904,-250.0,0.00039637,63]
[408252222,1773316246913,-152.0,0.00039643,5]
[408252223,1773316246930,-350.0,0.00039663,2]
[408252224,1773316246940,-25913.2446424,0.00039861,15]
[408252225,1773316246949,-492.0,0.00039863,2]
[408252226,1773316246959,-188385.4337073,0.00039961,2]
[408252227,1773316246968,-5429.6963981,0.00039961,2]
[408252228,1773316246978,-6240.0898757,0.00039961,2]
[408252229,1773316246987,-178.48,0.0004,120]
[408252230,1773316246997,-500.0,0.0004,30]
[408252231,1773316247010,-152.0,0.0004,120]
[408252232,1773316247019,-156.0,0.0004,120]
[408252233,1773316247029,-248.85656,0.0004,30]
[408252235,1773316247038,-17551.13552786,0.0004,8]
[408252236,1773316247048,-4160.34600879,0.0004,100]
[408252237,1773316247058,-151.0,0.0004,120]
[408252238,1773316247068,-151.13,0.0004,2]
[408252239,1773316247078,-151.13,0.0004,2]
[408252240,1773316247088,-151.13,0.0004,2]
[408252241,1773316247097,-151.13,0.0004,2]
[408252242,1773316247108,-151.13,0.0004,2]
[408252243,1773316247118,-151.13,0.0004,2]
[408252244,1773316247127,-151.13,0.0004,2]
[408252245,1773316247137,-151.13,0.0004,2]
[408252246,1773316247146,-151.13,0.0004,2]
[408252247,1773316247156,-151.13,0.0004,2]
[408252248,1773316247165,-151.13,0.0004,2]
[408252249,1773316247175,-151.13,0.0004,2]
[408252250,1773316247185,-151.13,0.0004,2]
[408252251,1773316247195,-151.13,0.0004,2]
[408252252,1773316247204,-151.13,0.0004,2]
[408252253,1773316247215,-151.13,0.0004,2]
[408252254,1773316247225,-151.13,0.0004,2]
[408252255,1773316247235,-151.13,0.0004,2]
[408252256,1773316247244,-151.13,0.0004,2]
[408252257,1773316247255,-151.13,0.0004,2]
[408252258,1773316247264,-151.0,0.0004,14]
[408252259,1773316247273,-151.0,0.0004,120]
[408252260,1773316247283,-500.0,0.00040178,14]
[408252261,1773316247293,-500.0,0.000402,30]
[408252262,1773316247302,-235.69610359,0.000404,30]
[408252263,1773316247312,-7021.5,0.000404,30]
[408252264,1773316247321,-4840.82,0.000404,30]
[408252265,1773316247331,-12983.2,0.000404,30]
[408252266,1773316247340,-339.58477835,0.000405,2]
[408252267,1773316247350,-596.65462095,0.00040502,67]
[408252268,1773316247359,-2954.42978653,0.0004059,2]
[408252269,1773316247368,-93615.67,0.000406,14]
[408252270,1773316247378,-151.0,0.000406,7]
[408252271,1773316247388,-151.0,0.000406,7]
[408252272,1773316247399,-151.0,0.000406,7]
[408252273,1773316247408,-154.789257,0.000406,120]
[408252274,1773316247418,-916.82258,0.0004063,120]
[408252275,1773316247427,-350.0,0.00040631,2]
[408252276,1773316247437,-211.07,0.00040663,30]
[408252277,1773316247447,-159.0,0.00040856,120]
[408252278,1773316247458,-1009.11928134,0.00040896,30]
[408252279,1773316247468,-36507.0,0.0004095,60]
[408252280,1773316247477,-508.7774185,0.00040959,30]
[408252281,1773316247487,-700.0,0.0004097,3]
[408252282,1773316247496,-151.0,0.00040997,14]
[408252283,1773316247506,-300.0,0.00040997,30]
[408252284,1773316247516,-300.0,0.00040998,10]
[408252285,1773316247525,-253.480155,0.00040999,120]
[408252286,1773316247535,-253.480155,0.00040999,120]
[408252287,1773316247546,-253.480155,0.00040999,120]
[408252288,1773316247556,-253.480155,0.00040999,120]
[408252289,1773316247568,-151.0,0.00040999,120]
[408252290,1773316247580,-151.0,0.00040999,120]
[408252291,1773316247590,-151.0,0.00040999,120]
[408252292,1773316247602,-151.0,0.00040999,120]
[408252293,1773316247754,-520.0,0.00040999,30]
[408252294,1773316247764,-1030.0,0.00040999,30]
[408252295,1773316247774,-6888.0,0.00040999,30]
[408252296,1773316247783,-151.0,0.00040999,30]
[408252297,1773316247793,-539.24,0.00040999,30]
[408252298,1773316247802,-500.0,0.00040999,30]
[408252299,1773316247811,-1068.11,0.00040999,30]
[408252300,1773316247821,-7142.856,0.00040999,30]
[408252301,1773316247830,-250.0,0.00040999,30]
[408252302,1773316247840,-500.0,0.00040999,30]
[408252303,1773316247849,-559.19188,0.00040999,30]
[408252304,1773316247858,-500.0,0.00040999,30]
[408252305,1773316247868,-1107.63007,0.00040999,30]
[408252306,1773316247877,-7407.141672,0.00040999,30]
[408252307,1773316247886,-250.0,0.00040999,30]
[408252308,1773316247895,-579.88197956,0.00040999,30]
[408252309,1773316247905,-500.0,0.00040999,30]
[408252310,1773316247914,-500.0,0.00040999,30]
[408252311,1773316247926,-7681.20591386,0.00040999,30]
[408252312,1773316247936,-250.0,0.00040999,30]
[408252313,1773316247946,-1148.61238259,0.00040999,30]
[408252314,1773316247955,-500.0,0.00040999,30]
[408252315,1773316247964,-601.3376128,0.00040999,30]
[408252316,1773316247973,-500.0,0.00040999,30]
[408252317,1773316247983,-500.0,0.00040999,30]
[408252318,1773316247992,-7965.41053268,0.00040999,30]
[408252319,1773316248002,-250.0,0.00040999,30]
[408252320,1773316248011,-1191.11104075,0.00040999,30]
[408252321,1773316248021,-304.70218855,0.00040999,30]
[408252322,1773316248030,-623.58710448,0.00040999,30]
[408252323,1773316248040,-500.0,0.00040999,30]
[408252324,1773316248050,-500.0,0.00040999,30]
[408252325,1773316248059,-500.0,0.00040999,30]
[408252326,1773316248070,-8260.13072239,0.00040999,30]
[408252327,1773316248079,-250.0,0.00040999,30]
[408252328,1773316248088,-1235.18214925,0.00040999,30]
[408252329,1773316248097,-646.65982734,0.00040999,30]
[408252330,1773316248107,-1500.0,0.00040999,30]
[408252331,1773316248116,-500.0,0.00040999,30]
[408252332,1773316248126,-500.0,0.00040999,30]
[408252333,1773316248135,-500.0,0.00040999,30]
[408252334,1773316248144,-8565.75555911,0.00040999,30]
[408252335,1773316248154,-250.0,0.00040999,30]
[408252336,1773316248163,-756.38801651,0.00040999,30]
[408252337,1773316248174,-1500.0,0.00040999,30]
[408252338,1773316248183,-738.47411659,0.00040999,30]
[408252339,1773316248193,-500.0,0.00040999,30]
[408252340,1773316248202,-500.0,0.00040999,30]
[408252341,1773316248213,-500.0,0.00040999,30]
[408252342,1773316248224,-8882.6885148,0.00040999,30]
[408252343,1773316248233,-250.0,0.00040999,30]
[408252344,1773316248243,-1500.0,0.00040999,30]
[408252345,1773316248252,-500.0,0.00040999,30]
[408252346,1773316248262,-500.0,0.00040999,30]
[408252347,1773316248271,-500.0,0.00040999,30]
[408252348,1773316248280,-250.0,0.00040999,30]
[408252349,1773316248291,-250.0,0.00040999,30]
[408252350,1773316248300,-500.0,0.00040999,30]
[408252351,1773316248309,-1500.0,0.00040999,30]
[408252352,1773316248318,-500.0,0.00040999,30]
[408252353,1773316248327,-500.0,0.00040999,30]
[408252354,1773316248336,-500.0,0.00040999,30]
[408252355,1773316248345,-250.0,0.00040999,30]
[408252356,1773316248354,-250.0,0.00040999,30]
[408252357,1773316248363,-500.0,0.00040999,30]
[408252358,1773316248372,-1500.0,0.00040999,30]
[408252359,1773316248382,-500.0,0.00040999,30]
[408252360,1773316248391,-500.0,0.00040999,30]
[408252361,1773316248400,-500.0,0.00040999,30]
[408252362,1773316248409,-1500.0,0.00040999,30]
[408252363,1773316248418,-250.0,0.00040999,30]
[408252364,1773316248428,-250.0,0.00040999,30]
[408252365,1773316248437,-500.0,0.00040999,30]
[408252366,1773316248446,-1500.0,0.00040999,30]
[408252367,1773316248455,-500.0,0.00040999,30]
[408252368,1773316248464,-500.0,0.00040999,30]
[408252369,1773316248473,-500.0,0.00040999,30]
[408252370,1773316248483,-1500.0,0.00040999,30]
[408252371,1773316248492,-372.58257451,0.00040999,30]
[408252372,1773316248501,-250.0,0.00040999,30]
[408252373,1773316248509,-1500.0,0.00040999,30]
[408252374,1773316248518,-500.0,0.00040999,30]
[408252375,1773316248528,-500.0,0.00040999,30]
[408252376,1773316248537,-1500.0,0.00040999,30]
[408252377,1773316248545,-500.0,0.00040999,30]
[408252378,1773316248554,-250.0,0.00040999,30]
[408252379,1773316248563,-1500.0,0.00040999,30]
[408252380,1773316248572,-500.0,0.00040999,30]
[408252381,1773316248581,-500.0,0.00040999,30]
[408252382,1773316248590,-500.0,0.00040999,30]
[408252383,1773316248598,-1500.0,0.00040999,30]
[408252384,1773316248607,-500.0,0.00040999,30]
[408252385,1773316248617,-250.0,0.00040999,30]
[408252386,1773316248626,-500.0,0.00040999,30]
[408252387,1773316248635,-500.0,0.00040999,30]
[408252388,1773316248644,-500.0,0.00040999,30]
[408252389,1773316248658,-1500.0,0.00040999,30]
[408252390,1773316248667,-500.0,0.00040999,30]
[408252391,1773316248677,-250.0,0.00040999,30]
[408252392,1773316248687,-500.0,0.00040999,30]
[408252393,1773316248697,-500.0,0.00040999,30]
[408252394,1773316248707,-500.0,0.00040999,30]
[408252395,1773316248717,-385.47086016,0.00040999,30]
[408252396,1773316248728,-250.0,0.00040999,30]
[408252397,1773316248739,-500.0,0.00040999,30]
[408252398,1773316248750,-500.0,0.00040999,30]
[408252399,1773316248760,-500.0,0.00040999,30]
[408252400,1773316248770,-500.0,0.00040999,30]
[408252401,1773316248779,-250.0,0.00040999,30]
[408252402,1773316248789,-500.0,0.00040999,30]
[408252403,1773316248799,-500.0,0.00040999,30]
[408252404,1773316248808,-500.0,0.00040999,30]
[408252405,1773316248817,-500.0,0.00040999,30]
[408252406,1773316248827,-250.0,0.00040999,30]
[408252407,1773316248837,-500.0,0.00040999,30]
[408252408,1773316248847,-500.0,0.00040999,30]
[408252409,1773316248857,-250.0,0.00040999,30]
[408252410,1773316248866,-500.0,0.00040999,30]
[408252411,1773316248875,-500.0,0.00040999,30]
[408252412,1773316248885,-500.0,0.00040999,30]
[408252413,1773316248894,-250.0,0.00040999,30]
[408252414,1773316248904,-500.0,0.00040999,30]
[408252415,1773316248913,-518.5,0.00040999,30]
[408252416,1773316248924,-500.0,0.00040999,30]
[408252417,1773316248933,-319.37715019,0.00040999,30]
[408252418,1773316248943,-500.0,0.00040999,30]
[408252419,1773316248952,-500.0,0.00040999,30]
[408252420,1773316248962,-250.0,0.00040999,30]
[408252421,1773316248972,-500.0,0.00040999,30]
[408252422,1773316248981,-537.6845,0.00040999,30]
[408252423,1773316248990,-500.0,0.00040999,30]
[408252424,1773316248999,-151.0,0.00040999,30]
[408252425,1773316249010,-500.0,0.00040999,30]
[408252426,1773316249020,-500.0,0.00040999,30]
[408252427,1773316249029,-500.0,0.00040999,30]
[408252428,1773316249038,-250.0,0.00040999,30]
[408252429,1773316249047,-500.0,0.00040999,30]
[408252430,1773316249056,-557.5788265,0.00040999,30]
[408252431,1773316249066,-500.0,0.00040999,30]
[408252432,1773316249075,-151.0,0.00040999,30]
[408252433,1773316249084,-500.0,0.00040999,30]
[408252434,1773316249093,-500.0,0.00040999,30]
[408252435,1773316249102,-500.0,0.00040999,30]
[408252436,1773316249111,-250.0,0.00040999,30]
[408252437,1773316249121,-500.0,0.00040999,30]
[408252438,1773316249130,-200.0,0.00040999,30]